bitfinex/quotes_SOLUSD_20240824
["timestamp","ask_amount","ask_price","bid_price","bid_amount"]
[1724469583905,17.10721937,153.67,153.66,0.0980119]
[1724469584976,25.05427858,153.67,153.66,0.0980119]
[1724469585178,70.30525858,153.67,153.66,0.0980119]
[1724469585770,57.3593966,153.67,153.66,0.0980119]
[1724469585973,62.35770635,153.67,153.66,0.0980119]
[1724469586193,49.21603654,153.67,153.66,0.0980119]
[1724469586391,62.35725756,153.67,153.66,0.0980119]
[1724469587600,70.30428963,153.67,153.66,0.0980119]
[1724469589014,70.30387817,153.67,153.66,0.0980119]
[1724469591981,45.25098,153.67,153.66,0.0980119]
[1724469592186,66.3390364,153.67,153.66,0.0980119]
[1724469594493,73.14461964,153.67,153.66,0.0980119]
[1724469595510,93.14461964,153.67,153.66,0.0980119]
[1724469597017,123.14461964,153.67,153.66,0.0980119]
[1724469598514,110.19984639,153.67,153.66,0.0980119]
[1724469598717,123.14492274,153.67,153.66,0.0980119]
[1724469600016,129.65232274,153.67,153.66,0.0980119]
[1724469600233,129.65220754,153.67,153.66,0.0980119]
[1724469601003,108.56396324,153.67,153.66,0.0980119]
[1724469601208,129.65210401,153.67,153.66,0.0980119]
[1724469601406,123.14470401,153.67,153.66,0.0980119]
[1724469602029,93.14470401,153.67,153.66,0.0980119]
[1724469603979,78.56396324,153.67,153.66,0.0980119]
[1724469604144,94.65320754,153.67,153.66,0.0980119]
[1724469604423,91.50751086,153.67,153.66,0.0980119]
[1724469604623,99.65087638,153.67,153.66,0.0980119]
[1724469605904,94.65370373,153.67,153.66,0.0980119]
[1724469606104,99.65146292,153.67,153.66,0.0980119]
[1724469607115,119.21146292,153.67,153.66,0.0980119]
[1724469607315,99.65146292,153.67,153.66,0.0980119]
[1724469607920,99.65146292,153.67,153.61,0.37731625]
[1724469608125,41.33824179,153.66,153.61,0.37731625]
[1724469608321,13.14108095,153.65,153.61,0.37731625]
[1724469608518,8.39430176,153.64,153.61,0.37731625]
[1724469608724,8.26881176,153.63,153.61,0.37731625]
[1724469608925,0.12549,153.62,153.61,0.37731625]
[1724469609125,8.26887641,153.62,153.61,0.37731625]
[1724469609326,8.39436641,153.62,153.61,0.37731625]
[1724469610346,53.39436641,153.62,153.61,0.37731625]
[1724469614027,45.25098,153.62,153.61,0.37731625]
[1724469614226,53.39435559,153.62,153.61,0.37731625]
[1724469617145,8.14337559,153.62,153.61,0.37731625]
[1724469617353,6.8052448,153.64,153.61,0.37731625]
[1724469617535,8.14321064,153.63,153.61,0.37731625]
[1724469617734,6.8052448,153.64,153.61,0.37731625]
[1724469617937,8.14320875,153.63,153.61,0.37731625]
[1724469618128,6.8052448,153.64,153.61,0.37731625]
[1724469618332,8.14319811,153.63,153.61,0.37731625]
[1724469618533,6.8052448,153.64,153.61,0.37731625]
[1724469618731,0.12549,153.62,153.61,0.37731625]
[1724469618946,0.25098,153.62,153.61,0.37731625]
[1724469622572,0.25098,153.62,153.61,0.37731625]
[1724469630272,45.94081361,153.62,153.61,0.37731625]
[1724469630461,58.93964312,153.62,153.61,0.37731625]
[1724469630658,103.93964312,153.62,153.61,0.37731625]
[1724469631293,103.93821036,153.62,153.61,0.37731625]
[1724469631588,103.93821036,153.62,153.59,6.80684893]
[1724469631589,175.57123815,153.62,153.59,6.80684893]
[1724469631757,45.24983361,153.6,153.55,4.23556794]
[1724469631958,58.57676805,153.59,153.55,4.23556794]
[1724469632153,45.0,153.58,153.55,4.23556794]
[1724469632381,20.25098,153.57,153.55,0.8220523]
[1724469632892,45.0,153.56,153.55,0.8220523]
[1724469633059,45.25098,153.56,153.55,0.8220523]
[1724469633485,75.25098,153.56,153.55,0.8220523]
[1724469633691,45.25098,153.56,153.55,0.8220523]
[1724469634083,8.11438818,153.64,153.55,0.8220523]
[1724469634084,8.11438818,153.64,153.55,17.4214523]
[1724469634273,35.13235505,153.63,153.55,17.4214523]
[1724469634594,25.56665067,153.62,153.55,17.4214523]
[1724469634892,25.56665067,153.62,153.56,6.80761811]
[1724469634893,17.62678199,153.61,153.56,6.80761811]
[1724469635074,6.80761811,153.62,153.56,6.80761811]
[1724469635400,17.62709688,153.61,153.56,6.80761811]
[1724469635576,12.63342583,153.6,153.56,6.80761811]
[1724469635768,6.80761811,153.62,153.56,6.80761811]
[1724469636093,17.62673902,153.61,153.56,6.80761811]
[1724469636259,6.80761811,153.62,153.56,6.80761811]
[1724469636464,17.62791224,153.61,153.56,6.80761811]
[1724469636770,6.80761811,153.62,153.56,6.80761811]
[1724469637106,8.11438818,153.65,153.56,32.49745172]
[1724469637107,12.63453496,153.61,153.56,32.49745172]
[1724469637386,26.3454,153.67,153.56,6.80761811]
[1724469637596,8.11543896,153.66,153.56,6.80761811]
[1724469637768,23.83368062,153.65,153.56,6.80761811]
[1724469638100,31.8783116,153.64,153.56,6.80761811]
[1724469638289,17.62922851,153.63,153.56,32.49745172]
[1724469638600,62.75471851,153.62,153.56,6.80761811]
[1724469638898,45.12549,153.62,153.57,25.68983361]
[1724469639088,0.12549,153.61,153.57,25.68983361]
[1724469639290,0.12549,153.61,153.56,6.80761811]
[1724469640667,0.12549,153.61,153.56,32.49745172]
[1724469643299,0.12549,153.61,153.58,25.68983361]
[1724469644008,0.12549,153.61,153.56,6.80761811]
[1724469645292,0.12549,153.61,153.56,10.22113375]
[1724469647796,0.12549,153.61,153.56,6.80761811]
[1724469650282,6.80522561,153.6,153.56,6.80761811]
[1724469650483,45.25098,153.59,153.56,6.80761811]
[1724469650994,30.0,153.57,153.56,6.80761811]
[1724469651201,75.0,153.57,153.56,6.80761811]
[1724469651704,6.1686,153.65,153.56,6.80761811]
[1724469651901,97.13276149,153.64,153.56,6.80761811]
[1724469652209,21.59004277,153.63,153.56,6.80761811]
[1724469652510,6.80502189,153.64,153.56,6.80761811]
[1724469652511,17.63117492,153.62,153.56,6.80761811]
[1724469652719,6.80502189,153.64,153.56,6.80761811]
[1724469653013,21.59026124,153.63,153.56,6.80761811]
[1724469653312,6.80502189,153.64,153.56,6.80761811]
[1724469653313,17.63137634,153.62,153.56,6.80761811]
[1724469653492,6.80502189,153.64,153.56,6.80761811]
[1724469653812,66.71553755,153.63,153.56,6.80761811]
[1724469654016,12.76192305,153.62,153.56,6.80761811]
[1724469654203,45.0,153.61,153.56,6.80761811]
[1724469654800,47.67668292,153.66,153.56,6.80761811]
[1724469654981,19.56,153.59,153.56,6.80761811]
[1724469655186,45.68983361,153.58,153.56,6.80761811]
[1724469655714,20.0,153.58,153.56,6.80761811]
[1724469655894,20.0,153.59,153.56,6.80761811]
[1724469656099,45.25098,153.58,153.56,6.80761811]
[1724469656409,30.0,153.57,153.56,6.80761811]
[1724469656580,75.25098,153.57,153.56,6.80761811]
[1724469656980,75.12549,153.57,153.56,6.80761811]
[1724469657208,8.2976291,153.65,153.56,6.80761811]
[1724469657415,56.09513757,153.64,153.56,6.80761811]
[1724469657617,7.05651087,153.64,153.56,6.80761811]
[1724469657778,23.20396864,153.63,153.56,6.80761811]
[1724469657982,5.24568362,153.62,153.56,6.80761811]
[1724469658177,0.25098,153.61,153.56,6.80761811]
[1724469658506,0.25098,153.64,153.56,6.80761811]
[1724469658688,17.63031854,153.63,153.56,6.80761811]
[1724469658888,12.63579782,153.62,153.56,6.80761811]
[1724469659213,10.72599975,153.66,153.56,10.22113375]
[1724469659513,25.57250072,153.65,153.56,10.22113375]
[1724469659723,25.57250072,153.64,153.56,10.22113375]
[1724469659883,17.6309918,153.63,153.56,10.22113375]
[1724469660084,14.21358975,153.67,153.56,10.22113375]
[1724469660294,48.82881652,153.66,153.56,10.22113375]
[1724469660496,28.82881652,153.65,153.56,10.22113375]
[1724469660698,70.82199907,153.64,153.56,10.22113375]
[1724469660923,17.62998121,153.63,153.56,10.22113375]
[1724469661117,45.25098,153.62,153.56,10.22113375]
[1724469661326,45.0,153.61,153.56,10.22113375]
[1724469661508,0.25098,153.62,153.56,10.22113375]
[1724469661708,0.25098,153.61,153.56,10.22113375]
[1724469662007,0.25098,153.63,153.56,10.22113375]
[1724469662201,12.63691314,153.62,153.56,10.22113375]
[1724469662410,45.12549,153.61,153.56,10.22113375]
[1724469662617,0.25098,153.63,153.56,10.22113375]
[1724469662809,12.64408126,153.62,153.57,15.5801]
[1724469663008,45.12549,153.61,153.57,15.5801]
[1724469663326,45.0,153.6,153.57,15.5801]
[1724469663530,0.12549,153.61,153.57,15.5801]
[1724469665619,12.64223739,153.6,153.57,15.5801]
[1724469665829,45.0,153.59,153.57,15.5801]
[1724469669438,8.1198695,153.64,153.58,6.1432]
[1724469669617,17.64296195,153.63,153.58,6.1432]
[1724469669821,8.1198695,153.67,153.58,6.1432]
[1724469670021,28.85191785,153.66,153.59,1.30196608]
[1724469670258,25.59429919,153.65,153.58,6.1432]
[1724469670430,8.1198695,153.67,153.58,6.1432]
[1724469670431,25.59429919,153.64,153.58,6.1432]
[1724469670636,8.1198695,153.68,153.58,31.83303361]
[1724469670844,279.28983361,153.72,153.6,15.5801]
[1724469670845,25.59657762,153.67,153.6,15.5801]
[1724469671064,25.59657762,153.66,153.6,15.5801]
[1724469671357,8.1198695,153.7,153.61,20.0]
[1724469671561,36.97461732,153.69,153.61,20.0]
[1724469671738,25.59756291,153.68,153.61,20.0]
[1724469671953,25.59756291,153.67,153.61,20.0]
[1724469672132,17.64862595,153.66,153.61,20.0]
[1724469672335,33.80970311,153.7,153.6,15.5801]
[1724469672525,25.68983361,153.66,153.6,15.5801]
[1724469672727,70.84863093,153.65,153.6,15.5801]
[1724469672956,51.28748454,153.64,153.6,15.5801]
[1724469673131,70.84863093,153.63,153.6,15.5801]
[1724469673330,25.59765093,153.62,153.6,15.5801]
[1724469673543,70.85354845,153.61,153.56,15.5801]
[1724469673743,51.29240206,153.6,153.56,15.5801]
[1724469673948,62.7742092,153.59,153.56,15.5801]
[1724469674153,51.41671393,153.58,153.56,15.5801]
[1724469674359,62.6487192,153.57,153.55,0.8220523]
[1724469674660,17.8996992,153.56,153.55,0.8220523]
[1724469674862,62.8996992,153.56,153.55,0.8220523]
[1724469675164,70.85116016,153.56,153.55,0.8220523]
[1724469677239,62.8996992,153.56,153.55,0.8220523]
[1724469678535,57.90852971,153.56,153.55,0.8220523]
[1724469678840,62.91295337,153.56,153.55,0.8220523]
[1724469679098,62.91306118,153.56,153.55,0.8220523]
[1724469680348,45.25098,153.56,153.55,0.8220523]
[1724469682562,45.25098,153.56,153.55,0.3220523]
[1724469685938,8.13254261,153.62,153.55,0.3220523]
[1724469686171,17.66204702,153.61,153.55,0.3220523]
[1724469686472,6.8081009,153.67,153.57,15.967]
[1724469686641,28.8887722,153.66,153.57,15.967]
[1724469686842,25.63038812,153.65,153.57,15.967]
[1724469687070,17.67059493,153.64,153.57,15.967]
[1724469687268,6.8081009,153.67,153.57,15.967]
[1724469687436,25.63092143,153.66,153.57,15.967]
[1724469687641,25.63092143,153.65,153.57,15.967]
[1724469687842,17.67097584,153.64,153.57,15.967]
[1724469688065,6.8081009,153.67,153.57,15.967]
[1724469688267,74.14022579,153.66,153.57,15.967]
[1724469688464,25.63086873,153.65,153.57,15.967]
[1724469688660,45.25098,153.66,153.57,15.967]
[1724469688661,62.92191225,153.64,153.57,15.967]
[1724469688847,8.14594267,153.63,153.57,15.967]
[1724469689045,20.80271834,153.62,153.57,15.967]
[1724469689249,45.25098,153.64,153.57,15.967]
[1724469689581,13.14961923,153.63,153.57,15.967]
[1724469689751,8.14656334,153.62,153.57,15.967]
[1724469689944,45.25098,153.64,153.57,15.967]
[1724469690146,13.14917611,153.63,153.57,15.967]
[1724469690451,8.14643872,153.62,153.57,15.967]
[1724469690659,45.25098,153.64,153.57,15.967]
[1724469690875,13.14891866,153.63,153.57,15.967]
[1724469691074,8.14613027,153.62,153.57,15.967]
[1724469691278,45.25098,153.64,153.57,15.967]
[1724469691469,13.14884427,153.63,153.57,15.967]
[1724469691770,8.14611356,153.62,153.57,15.967]
[1724469691975,45.25098,153.64,153.57,15.967]
[1724469692187,13.14880976,153.63,153.57,15.967]
[1724469692474,8.14611356,153.62,153.57,15.967]
[1724469692770,45.25098,153.64,153.57,15.967]
[1724469692973,21.10229335,153.63,153.57,15.967]
[1724469693178,58.3998142,153.62,153.57,15.967]
[1724469693344,8.14606977,153.61,153.57,15.967]
[1724469693539,45.0,153.62,153.57,15.967]
[1724469693870,0.12549,153.64,153.57,15.967]
[1724469694082,13.14898461,153.63,153.57,15.967]
[1724469694259,8.14599103,153.62,153.57,15.967]
[1724469694460,0.12549,153.64,153.57,15.967]
[1724469694678,8.14585909,153.63,153.58,1.30201918]
[1724469694979,6.8081009,153.67,153.58,1.30201918]
[1724469695148,53.396652,153.66,153.58,1.30201918]
[1724469695347,8.145672,153.65,153.58,1.30201918]
[1724469695573,58.14894372,153.64,153.57,15.967]
[1724469695779,8.145672,153.63,153.57,15.967]
[1724469695981,45.25098,153.66,153.57,15.967]
[1724469696155,24.36276275,153.65,153.57,15.967]
[1724469696352,66.35503798,153.64,153.57,15.967]
[1724469696572,21.10405798,153.63,153.57,15.967]
[1724469696762,58.14890377,153.62,153.57,15.967]
[1724469696969,13.39988377,153.61,153.57,15.967]
[1724469697158,58.14890377,153.6,153.57,15.967]
[1724469697370,8.14562912,153.59,153.57,15.967]
[1724469697584,45.0,153.6,153.57,15.967]
[1724469697877,8.14767699,153.59,153.57,15.967]
[1724469698066,8.14792778,153.58,153.57,15.967]
[1724469698989,45.0,153.6,153.57,15.967]
[1724469699189,8.14787748,153.59,153.57,15.967]
[1724469699484,45.0,153.6,153.57,15.967]
[1724469699654,8.14791672,153.59,153.57,15.967]
[1724469699853,8.14791672,153.58,153.57,15.967]
[1724469700586,45.0,153.6,153.57,15.967]
[1724469700767,8.14783367,153.59,153.57,15.967]
[1724469700968,45.0,153.6,153.57,15.967]
[1724469701271,8.14787845,153.59,153.57,15.967]
[1724469701467,45.0,153.6,153.57,15.967]
[1724469701776,8.14787845,153.59,153.57,15.967]
[1724469701979,8.14787845,153.58,153.57,15.967]
[1724469704776,8.14788017,153.58,153.57,15.967]
[1724469708379,45.0,153.6,153.57,15.967]
[1724469708875,8.14792397,153.59,153.57,15.967]
[1724469709057,8.14792397,153.58,153.57,15.967]
[1724469709886,45.0,153.6,153.57,15.967]
[1724469710084,8.1476039,153.59,153.57,15.967]
[1724469710285,8.1476039,153.58,153.57,15.967]
[1724469710795,8.14752972,153.58,153.57,15.967]
[1724469711604,8.14792394,153.58,153.57,15.967]
[1724469714474,8.14792394,153.58,153.57,15.467]
[1724469714679,8.14796761,153.58,153.57,15.467]
[1724469717897,45.0,153.6,153.57,15.467]
[1724469718087,8.14787932,153.58,153.57,15.467]
[1724469718283,0.12549,153.59,153.57,15.467]
[1724469718488,8.14787932,153.58,153.57,15.467]
[1724469719566,13.1528798,153.58,153.57,15.467]
[1724469720299,58.1528798,153.58,153.57,15.467]
[1724469720895,45.0,153.58,153.57,15.467]
[1724469721104,58.15310025,153.58,153.57,15.467]
[1724469721687,13.15310025,153.58,153.57,15.467]
[1724469730092,8.14787888,153.58,153.57,15.467]
[1724469730327,13.15261912,153.58,153.57,15.467]
[1724469736540,8.1478347,153.58,153.57,15.467]
[1724469736720,10.0079252,153.58,153.57,15.467]
[1724469736921,18.1557599,153.58,153.57,15.467]
[1724469737125,13.1517973,153.58,153.57,15.467]
[1724469737641,21.10774778,153.58,153.57,15.467]
[1724469738019,21.10813795,153.58,153.57,15.467]
[1724469738223,29.06439259,153.58,153.57,15.467]
[1724469738611,21.10844151,153.58,153.57,15.467]
[1724469739165,21.35942151,153.58,153.55,0.3220523]
[1724469739428,66.10844151,153.57,153.55,0.3220523]
[1724469739631,21.35942151,153.56,153.55,0.3220523]
[1724469739842,66.35764135,153.56,153.55,0.3220523]
[1724469743229,53.4009784,153.56,153.55,0.3220523]
[1724469743556,66.35827975,153.56,153.55,0.3220523]
[1724469746149,66.10729975,153.56,153.55,0.3220523]
[1724469746359,45.0,153.56,153.55,0.3220523]
[1724469746723,66.10716768,153.56,153.55,0.3220523]
[1724469747846,96.35814768,153.56,153.55,0.3220523]
[1724469748253,96.35674835,153.56,153.55,0.3220523]
[1724469749727,66.35674835,153.56,153.55,0.3220523]
[1724469749923,58.20595854,153.56,153.55,0.3220523]
[1724469750126,66.35675339,153.56,153.55,0.3220523]
[1724469751051,66.10577339,153.56,153.55,0.3220523]
[1724469753353,66.10185805,153.56,153.55,0.3220523]
[1724469755940,66.35283805,153.56,153.55,0.3220523]
[1724469756556,45.25098,153.56,153.55,0.3220523]
[1724469756764,58.40273583,153.56,153.55,0.3220523]
[1724469757049,53.20159783,153.56,153.55,0.3220523]
[1724469757253,66.22834604,153.56,153.55,0.3220523]
[1724469757962,66.35383604,153.56,153.55,0.3220523]
[1724469763260,66.35360052,153.56,153.55,0.3220523]
[1724469775172,74.47888458,153.56,153.55,0.3220523]
[1724469775875,66.32705112,153.56,153.55,0.3220523]
[1724469776079,74.47863533,153.56,153.55,0.3220523]
[1724469776445,66.32705112,153.56,153.55,0.3220523]
[1724469779055,73.13569088,153.56,153.55,0.3220523]
[1724469779255,73.13748784,153.56,153.55,0.3220523]
[1724469780876,103.13748784,153.56,153.55,0.3220523]
[1724469781173,95.01168721,153.56,153.55,0.3220523]
[1724469782069,65.01168721,153.56,153.55,0.3220523]
[1724469782368,71.52378721,153.56,153.55,0.3220523]
[1724469782560,91.52378721,153.56,153.55,0.3220523]
[1724469783176,114.35066551,153.56,153.55,0.3220523]
[1724469784266,144.35066551,153.56,153.55,0.3220523]
[1724469784476,131.39859806,153.56,153.55,0.3220523]
[1724469784668,144.34765044,153.56,153.55,0.3220523]
[1724469784981,144.34756079,153.56,153.55,0.3220523]
[1724469785445,150.54326079,153.56,153.55,0.3220523]
[1724469785774,150.54326079,153.56,153.44,21.4932]
[1724469785775,6.5135,153.53,153.44,21.4932]
[1724469785966,8.12345368,153.51,153.44,21.4932]
[1724469786275,13.19994273,153.5,153.44,21.4932]
[1724469786474,12.94896273,153.49,153.44,21.4932]
[1724469786680,21.32339641,153.48,153.44,15.3799]
[1724469786866,12.94896273,153.47,153.44,15.3799]
[1724469787180,4.99966065,153.46,153.44,15.3799]
[1724469787479,8.12345368,153.5,153.44,15.3799]
[1724469787681,22.8268783,153.55,153.46,15.3799]
[1724469787979,8.12230119,153.54,153.46,15.3799]
[1724469788273,7.94957485,153.53,153.46,15.3799]
[1724469788471,6.80863976,153.56,153.46,15.3799]
[1724469789378,20.0,153.55,153.46,15.3799]
[1724469789773,45.25098,153.54,153.46,15.3799]
[1724469790078,52.04848565,153.54,153.46,15.3799]
[1724469791787,25.68983361,153.52,153.42,15.3799]
[1724469791987,45.25098,153.51,153.42,15.3799]
[1724469793363,0.25098,153.51,153.42,15.3799]
[1724469795857,30.0,153.46,153.42,15.3799]
[1724469797854,6.49698016,153.49,153.42,15.3799]
[1724469798084,51.74796016,153.48,153.42,15.3799]
[1724469799459,4.98098252,153.47,153.42,15.3799]
[1724469799664,51.74796016,153.48,153.42,15.3799]
[1724469799665,30.0,153.45,153.42,15.3799]
[1724469799865,45.25098,153.44,153.42,15.3799]
[1724469800979,30.0,153.43,153.42,15.3799]
[1724469801173,45.0,153.43,153.42,15.3799]
[1724469801561,45.12549,153.43,153.42,15.3799]
[1724469801873,45.25098,153.43,153.42,15.3799]
[1724469802899,75.25098,153.43,153.42,15.3799]
[1724469803079,45.25098,153.43,153.42,15.3799]
[1724469803797,45.12549,153.43,153.42,15.3799]
[1724469804087,45.0,153.43,153.42,15.3799]
[1724469804389,45.0,153.43,153.4,0.9220523]
[1724469804588,97.45911361,153.42,153.4,0.9220523]
[1724469804888,30.0,153.41,153.4,0.9220523]
[1724469805094,95.25098,153.41,153.4,0.9220523]
[1724469805387,30.0,153.41,153.4,0.9220523]
[1724469805570,6.49610198,153.48,153.4,16.2945523]
[1724469805776,4.98054654,153.47,153.4,22.6304523]
[1724469805974,6.49610198,153.49,153.4,22.6304523]
[1724469805975,30.0,153.41,153.4,22.6304523]
[1724469806374,13.3334,153.41,153.4,22.6304523]
[1724469806578,6.79740727,153.48,153.4,22.6304523]
[1724469806775,6.79740727,153.48,153.4,48.32028591]
[1724469807305,45.0,153.47,153.4,48.32028591]
[1724469807601,0.25098,153.46,153.4,48.32028591]
[1724469808186,0.25098,153.46,153.4,22.6304523]
[1724469816215,6.79247538,153.45,153.4,22.6304523]
[1724469816397,45.25098,153.44,153.4,22.6304523]
[1724469827104,45.25098,153.44,153.4,22.1304523]
[1724469828719,45.25098,153.44,153.4,15.7945523]
[1724469829804,4.9762614,153.43,153.4,15.7945523]
[1724469830012,45.25098,153.42,153.4,15.7945523]
[1724469830823,52.04296023,153.42,153.4,15.7945523]
[1724469831324,30.0,153.41,153.4,15.7945523]
[1724469831615,75.25098,153.41,153.4,0.4220523]
[1724469832222,50.22677512,153.41,153.4,0.4220523]
[1724469832604,45.25098,153.41,153.4,0.4220523]
[1724469833793,50.22694797,153.41,153.4,0.4220523]
[1724469835126,50.22690764,153.41,153.4,0.4220523]
[1724469836202,50.10141764,153.41,153.4,0.4220523]
[1724469836403,49.97592764,153.41,153.4,0.4220523]
[1724469836601,13.13449381,153.41,153.4,0.4220523]
[1724469839831,6.79377222,153.46,153.4,0.4220523]
[1724469840026,13.13387507,153.41,153.4,0.4220523]
[1724469843933,8.15815069,153.41,153.4,0.4220523]
[1724469845430,8.15700178,153.41,153.4,0.4220523]
[1724469848417,38.15700178,153.41,153.4,0.4220523]
[1724469848737,8.15704598,153.41,153.4,0.4220523]
[1724469851647,13.13863362,153.41,153.4,0.4220523]
[1724469851850,45.25098,153.45,153.4,0.4220523]
[1724469852147,8.15762062,153.41,153.4,0.4220523]
[1724469852316,45.25098,153.45,153.4,0.4220523]
[1724469852524,13.13922279,153.41,153.4,0.4220523]
[1724469855251,13.13888452,153.41,153.4,0.4220523]
[1724469858443,13.1389725,153.41,153.4,0.4220523]
[1724469861628,4.98145347,153.41,153.4,0.4220523]
[1724469861935,13.1389459,153.41,153.4,0.4220523]
[1724469862145,13.13935945,153.41,153.4,0.4220523]
[1724469865446,13.13935945,153.41,153.4,0.4220523]
[1724469868356,8.15744823,153.41,153.4,0.4220523]
[1724469868659,8.15688603,153.41,153.4,0.4220523]
[1724469870928,8.09688603,153.41,153.4,0.4220523]
[1724469871133,8.09688603,153.41,153.4,16.4398523]
[1724469871462,6.79320619,153.5,153.4,22.7482523]
[1724469871760,4.98248365,153.49,153.4,22.7482523]
[1724469871959,4.98248365,153.48,153.4,22.7482523]
[1724469872167,4.98262095,153.47,153.4,22.7482523]
[1724469872384,6.79320619,153.5,153.4,22.7482523]
[1724469872535,45.25098,153.49,153.4,22.7482523]
[1724469877054,6.79320619,153.5,153.41,25.68983361]
[1724469878394,45.25098,153.49,153.41,25.68983361]
[1724469882946,8.1553143,153.48,153.41,25.68983361]
[1724469883155,53.4062943,153.47,153.41,25.68983361]
[1724469883355,8.1553143,153.46,153.41,25.68983361]
[1724469883557,8.1553143,153.45,153.41,25.68983361]
[1724469883748,8.1553143,153.44,153.41,25.68983361]
[1724469884036,45.25098,153.47,153.41,25.68983361]
[1724469884242,45.25098,153.47,153.4,22.7482523]
[1724469884243,8.1553191,153.46,153.4,22.7482523]
[1724469884442,6.5173,153.44,153.4,0.4220523]
[1724469884636,8.4062991,153.43,153.4,0.4220523]
[1724469884873,53.1553191,153.42,153.4,0.4220523]
[1724469885041,8.4062991,153.41,153.4,0.4220523]
[1724469885245,53.4062991,153.41,153.4,0.4220523]
[1724469885461,53.40943602,153.41,153.4,0.4220523]
[1724469887460,53.15845602,153.41,153.4,0.4220523]
[1724469887778,8.15845602,153.41,153.4,0.4220523]
[1724469889569,53.15845602,153.41,153.4,0.4220523]
[1724469890072,53.28394602,153.41,153.4,0.4220523]
[1724469892075,45.12549,153.41,153.4,0.4220523]
[1724469892277,53.28368298,153.41,153.4,0.4220523]
[1724469892453,45.12549,153.41,153.4,0.4220523]
[1724469892662,53.28368298,153.41,153.4,0.4220523]
[1724469895081,53.40917298,153.41,153.4,0.4220523]
[1724469895394,53.40921106,153.41,153.4,0.4220523]
[1724469898183,57.37068043,153.41,153.4,0.4220523]
[1724469898901,45.25098,153.41,153.4,0.4220523]
[1724469899182,57.37110935,153.41,153.4,0.4220523]
[1724469900485,57.24561935,153.41,153.4,0.4220523]
[1724469901365,45.12549,153.41,153.4,0.4220523]
[1724469901557,53.28372782,153.41,153.4,0.4220523]
[1724469901763,53.28372145,153.41,153.4,0.4220523]
[1724469902962,53.15823145,153.41,153.4,0.4220523]
[1724469908074,53.15781222,153.41,153.4,0.4220523]
[1724469909190,8.15781222,153.41,153.4,0.4220523]
[1724469909487,15.5344,153.51,153.4,41.87318591]
[1724469909693,6.79250462,153.49,153.4,41.87318591]
[1724469909896,12.11986548,153.48,153.4,41.87318591]
[1724469910095,12.11986548,153.47,153.4,41.87318591]
[1724469910304,12.11986548,153.46,153.4,41.87318591]
[1724469910481,8.15610705,153.45,153.4,41.87318591]
[1724469910799,8.15610705,153.44,153.4,41.87318591]
[1724469910965,6.79250462,153.49,153.4,41.87318591]
[1724469911164,57.37063879,153.48,153.4,41.87318591]
[1724469911520,12.11961865,153.47,153.4,41.87318591]
[1724469911673,57.24510865,153.46,153.4,41.87318591]
[1724469911979,8.15580865,153.45,153.4,41.87318591]
[1724469912381,8.15580865,153.44,153.42,25.68983361]
[1724469912698,45.0,153.46,153.42,25.68983361]
[1724469912894,8.155759,153.45,153.42,25.68983361]
[1724469913081,8.155759,153.44,153.42,25.68983361]
[1724469913283,45.0,153.46,153.42,25.68983361]
[1724469913501,8.15575708,153.45,153.42,25.68983361]
[1724469913799,8.15575708,153.44,153.42,25.68983361]
[1724469914096,45.0,153.46,153.42,25.68983361]
[1724469914290,8.15585091,153.45,153.41,6.314]
[1724469914483,8.15585091,153.44,153.41,6.314]
[1724469914683,45.0,153.46,153.41,6.314]
[1724469914919,8.15588471,153.45,153.41,6.314]
[1724469915191,8.15588471,153.44,153.41,6.314]
[1724469915373,45.0,153.46,153.41,6.314]
[1724469919711,6.79250462,153.49,153.41,6.314]
[1724469919712,6.79250462,153.49,153.42,25.68983361]
[1724469920013,3.96405387,153.48,153.42,25.68983361]
[1724469920184,3.96405387,153.47,153.42,25.68983361]
[1724469920383,6.79281433,153.51,153.42,25.68983361]
[1724469920604,3.96401232,153.5,153.42,25.68983361]
[1724469920907,3.96401232,153.49,153.42,25.68983361]
[1724469921119,49.21499232,153.48,153.42,25.68983361]
[1724469921408,3.96401232,153.47,153.42,25.68983361]
[1724469922012,45.0,153.48,153.42,25.68983361]
[1724469922589,45.0,153.48,153.43,1.30321997]
[1724469922811,45.0,153.48,153.42,25.68983361]
[1724469923205,45.0,153.48,153.43,1.30323876]
[1724469924428,45.0,153.48,153.44,42.32183361]
[1724469924735,20.0,153.53,153.44,42.32183361]
[1724469924894,3.96462691,153.52,153.44,42.32183361]